[Event "Early-Titled-Tuesday-Blitz-February-27-2024"]
[Site "Chess.com"]
[Date "2024.02.27"]
[Round "11"]
[White "Brahianzevich"]
[Black "sorch29"]
[Result "0-1"]
[WhiteElo "2487"]
[BlackElo "2415"]
[TimeControl "180+1"]
[EndTime "10:06:26 PST"]
[Termination "sorch29 won by resignation"]

1. e4 {[%clk 0:02:51.5]} 1... c5 {[%clk 0:02:59.1]} 2. Nf3 {[%clk 0:02:51.5]}
2... Nc6 {[%clk 0:02:58.5]} 3. d4 {[%clk 0:02:48.9]} 3... cxd4 {[%clk
0:02:59.4]} 4. Nxd4 {[%clk 0:02:48.6]} 4... Nf6 {[%clk 0:02:59.5]} 5. Nc3 {[%clk
0:02:47.6]} 5... e5 {[%clk 0:02:59.7]} 6. Ndb5 {[%clk 0:02:47.9]} 6... d6 {[%clk
0:02:59.7]} 7. Bg5 {[%clk 0:02:47.2]} 7... a6 {[%clk 0:02:59.6]} 8. Na3 {[%clk
0:02:46.6]} 8... b5 {[%clk 0:02:58.2]} 9. Nd5 {[%clk 0:02:45.8]} 9... Be7 {[%clk
0:02:58.7]} 10. Bxf6 {[%clk 0:02:46.1]} 10... Bxf6 {[%clk 0:02:59.3]} 11. c4
{[%clk 0:02:47]} 11... b4 {[%clk 0:02:58.8]} 12. Nc2 {[%clk 0:02:47.4]} 12... a5
{[%clk 0:02:59.4]} 13. Qf3 {[%clk 0:02:41.8]} 13... Bg5 {[%clk 0:02:49.5]} 14.
Rd1 {[%clk 0:02:40.5]} 14... O-O {[%clk 0:02:45.2]} 15. h4 {[%clk 0:02:39.9]}
15... Bh6 {[%clk 0:02:31.5]} 16. g4 {[%clk 0:02:39.3]} 16... Bf4 {[%clk
0:01:42.1]} 17. Nxf4 {[%clk 0:02:34.4]} 17... exf4 {[%clk 0:01:43]} 18. Qxf4
{[%clk 0:02:35.2]} 18... Ne5 {[%clk 0:01:24.9]} 19. Be2 {[%clk 0:02:34.7]} 19...
Qe7 {[%clk 0:01:09.3]} 20. Ne3 {[%clk 0:02:27.6]} 20... Be6 {[%clk 0:00:52.5]}
21. h5 {[%clk 0:02:24]} 21... b3 {[%clk 0:00:41.5]} 22. c5 {[%clk 0:01:49.3]}
22... bxa2 {[%clk 0:00:22.6]} 23. cxd6 {[%clk 0:01:49.5]} 23... Qxd6 {[%clk
0:00:21.6]} 24. O-O {[%clk 0:01:39.1]} 24... Qc5 {[%clk 0:00:13.5]} 25. Rd5
{[%clk 0:01:05.3]} 25... Bxd5 {[%clk 0:00:11.9]} 26. Qxe5 {[%clk 0:01:05.6]}
26... Rfe8 {[%clk 0:00:10.5]} 27. Qxd5 {[%clk 0:01:01.2]} 27... Qxd5 {[%clk
0:00:10.7]} 28. Nxd5 {[%clk 0:01:02.1]} 28... Rxe4 {[%clk 0:00:10.9]} 29. Nc3
{[%clk 0:00:59.3]} 29... Re5 {[%clk 0:00:10.2]} 30. Bc4 {[%clk 0:00:57.5]} 30...
Rb8 {[%clk 0:00:09.7]} 31. Bxa2 {[%clk 0:00:55.3]} 31... Rxb2 {[%clk 0:00:10.1]}
32. Rd1 {[%clk 0:00:52.3]} 32... Kf8 {[%clk 0:00:08.1]} 33. Bd5 {[%clk
0:00:49.7]} 33... Rc2 {[%clk 0:00:05.6]} 34. Ne4 {[%clk 0:00:47.3]} 34... Rc7
{[%clk 0:00:04]} 35. f4 {[%clk 0:00:44.3]} 35... Re8 {[%clk 0:00:03.9]} 36. Ng5
{[%clk 0:00:29.6]} 36... h6 {[%clk 0:00:03.8]} 37. Nf3 {[%clk 0:00:27.7]} 37...
Rd8 {[%clk 0:00:03.2]} 38. Ne5 {[%clk 0:00:23.5]} 38... Rc5 {[%clk 0:00:02.8]}
39. Bf3 {[%clk 0:00:23.5]} 39... Rxd1+ {[%clk 0:00:02.4]} 40. Bxd1 {[%clk
0:00:24.2]} 40... Rd5 {[%clk 0:00:02.7]} 41. Bb3 {[%clk 0:00:20.7]} 41... Rd4
{[%clk 0:00:03.1]} 42. Bxf7 {[%clk 0:00:20.8]} 42... Rxf4 {[%clk 0:00:03.2]} 43.
Ng6+ {[%clk 0:00:21.3]} 43... Kxf7 {[%clk 0:00:03.3]} 44. Nxf4 {[%clk
0:00:22.2]} 44... a4 {[%clk 0:00:03.6]} 45. Nd3 {[%clk 0:00:21.8]} 45... a3
{[%clk 0:00:04.2]} 46. Kf2 {[%clk 0:00:21.7]} 46... a2 {[%clk 0:00:03.8]} 47.
Nb4 {[%clk 0:00:05.8]} 47... a1=Q {[%clk 0:00:04.7]} 0-1

[Event "Early-Titled-Tuesday-Blitz-February-27-2024"]
[Site "Chess.com"]
[Date "2024.02.27"]
[Round "11"]
[White "laziestwin"]
[Black "Aygehovit1992"]
[Result "1/2-1/2"]
[WhiteElo "2590"]
[BlackElo "2694"]
[TimeControl "180+1"]
[EndTime "10:06:27 PST"]
[Termination "Game drawn - insufficient material"]

1. d4 {[%clk 0:03:00.5]} 1... Nf6 {[%clk 0:02:58.5]} 2. c4 {[%clk 0:02:56.6]}
2... e6 {[%clk 0:02:57.7]} 3. a3 {[%clk 0:02:55.4]} 3... d5 {[%clk 0:02:56.2]}
4. Nc3 {[%clk 0:02:54.8]} 4... c5 {[%clk 0:02:53.4]} 5. cxd5 {[%clk 0:02:52.7]}
5... Nxd5 {[%clk 0:02:53.2]} 6. Nf3 {[%clk 0:02:46.4]} 6... Nc6 {[%clk
0:02:50.2]} 7. e4 {[%clk 0:02:43.3]} 7... Nxc3 {[%clk 0:02:50.2]} 8. bxc3 {[%clk
0:02:44.2]} 8... cxd4 {[%clk 0:02:36.5]} 9. cxd4 {[%clk 0:02:41.5]} 9... Be7
{[%clk 0:02:31.5]} 10. Be2 {[%clk 0:02:31.7]} 10... O-O {[%clk 0:02:30.1]} 11.
O-O {[%clk 0:02:31.7]} 11... b6 {[%clk 0:02:30.3]} 12. Bb2 {[%clk 0:02:19.3]}
12... Bb7 {[%clk 0:02:27.2]} 13. Rc1 {[%clk 0:02:19.4]} 13... Bf6 {[%clk
0:02:20.6]} 14. Qd3 {[%clk 0:01:51.9]} 14... Qd7 {[%clk 0:02:07.2]} 15. Rfd1
{[%clk 0:01:50.6]} 15... Rfd8 {[%clk 0:02:07]} 16. Ba1 {[%clk 0:01:40.6]} 16...
Rac8 {[%clk 0:02:06.3]} 17. d5 {[%clk 0:00:27.5]} 17... Bxa1 {[%clk 0:01:58.8]}
18. dxc6 {[%clk 0:00:27.2]} 18... Qxd3 {[%clk 0:01:58.6]} 19. Rxd3 {[%clk
0:00:27.2]} 19... Rxd3 {[%clk 0:01:58]} 20. Bxd3 {[%clk 0:00:25.4]} 20... Bb2
{[%clk 0:01:39]} 21. Rc2 {[%clk 0:00:19.5]} 21... Rxc6 {[%clk 0:01:37.3]} 22.
Rxb2 {[%clk 0:00:20]} 22... Rc1+ {[%clk 0:01:37]} 23. Bf1 {[%clk 0:00:20.7]}
23... Bxe4 {[%clk 0:01:30.5]} 24. Nd2 {[%clk 0:00:18.2]} 24... Bd3 {[%clk
0:01:27.6]} 25. f3 {[%clk 0:00:17.5]} 25... Ra1 {[%clk 0:01:19.1]} 26. Rb3
{[%clk 0:00:17.4]} 26... Bxf1 {[%clk 0:01:13.4]} 27. Nxf1 {[%clk 0:00:18.3]}
27... h5 {[%clk 0:01:08]} 28. h4 {[%clk 0:00:17.8]} 28... a5 {[%clk 0:01:05.6]}
29. Kf2 {[%clk 0:00:17.7]} 29... a4 {[%clk 0:01:05.5]} 30. Rd3 {[%clk
0:00:14.8]} 30... Ra2+ {[%clk 0:01:01.1]} 31. Kg3 {[%clk 0:00:14.8]} 31... b5
{[%clk 0:00:54.1]} 32. Ne3 {[%clk 0:00:14.1]} 32... Rb2 {[%clk 0:00:51.8]} 33.
Kf4 {[%clk 0:00:07.7]} 33... f6 {[%clk 0:00:51.8]} 34. g4 {[%clk 0:00:06.4]}
34... hxg4 {[%clk 0:00:51.6]} 35. fxg4 {[%clk 0:00:06.7]} 35... Kh7 {[%clk
0:00:51.9]} 36. h5 {[%clk 0:00:07]} 36... Kh6 {[%clk 0:00:50.2]} 37. Rd8 {[%clk
0:00:02.3]} 37... Kh7 {[%clk 0:00:50.4]} 38. Rd7 {[%clk 0:00:02.3]} 38... Rb3
{[%clk 0:00:49]} 39. Nc2 {[%clk 0:00:02.4]} 39... Rc3 {[%clk 0:00:47]} 40. Rd2
{[%clk 0:00:03]} 40... Kh6 {[%clk 0:00:45.2]} 41. Ke4 {[%clk 0:00:02.7]} 41...
Kg5 {[%clk 0:00:42.7]} 42. Nd4 {[%clk 0:00:02.8]} 42... Rxa3 {[%clk 0:00:34]}
43. Nxe6+ {[%clk 0:00:03.5]} 43... Kxg4 {[%clk 0:00:34.5]} 44. Rg2+ {[%clk
0:00:03.8]} 44... Kxh5 {[%clk 0:00:34.5]} 45. Nxg7+ {[%clk 0:00:04.5]} 45... Kh4
{[%clk 0:00:34.5]} 46. Nf5+ {[%clk 0:00:05.2]} 46... Kh3 {[%clk 0:00:35]} 47.
Rb2 {[%clk 0:00:05.5]} 47... Rb3 {[%clk 0:00:33.8]} 48. Rxb3+ {[%clk 0:00:05.6]}
48... axb3 {[%clk 0:00:34.7]} 49. Kd3 {[%clk 0:00:06]} 49... Kg4 {[%clk
0:00:31.6]} 50. Nd4 {[%clk 0:00:06.1]} 50... f5 {[%clk 0:00:28.8]} 51. Kc3
{[%clk 0:00:05.4]} 51... f4 {[%clk 0:00:26]} 52. Kxb3 {[%clk 0:00:05.8]} 52...
Kg3 {[%clk 0:00:23]} 53. Kb4 {[%clk 0:00:05.5]} 53... Kf2 {[%clk 0:00:20.8]} 54.
Kxb5 {[%clk 0:00:05.7]} 54... Ke3 {[%clk 0:00:21.6]} 55. Nf5+ {[%clk 0:00:04.9]}
55... Ke4 {[%clk 0:00:21.6]} 56. Nh4 {[%clk 0:00:05]} 56... f3 {[%clk
0:00:22.2]} 57. Nxf3 {[%clk 0:00:04.8]} 1/2-1/2

[Event "Early-Titled-Tuesday-Blitz-February-27-2024"]
[Site "Chess.com"]
[Date "2024.02.27"]
[Round "11"]
[White "wqws"]
[Black "Kotlyar_K"]
[Result "0-1"]
[WhiteElo "2697"]
[BlackElo "2605"]
[TimeControl "180+1"]
[EndTime "10:06:33 PST"]
[Termination "Kotlyar_K won by resignation"]

1. e4 {[%clk 0:02:59.9]} 1... c5 {[%clk 0:02:57.2]} 2. Nf3 {[%clk 0:03:00.1]}
2... d6 {[%clk 0:02:57.1]} 3. d4 {[%clk 0:03:00.1]} 3... cxd4 {[%clk 0:02:58]}
4. Nxd4 {[%clk 0:03:01]} 4... Nf6 {[%clk 0:02:58.3]} 5. Nc3 {[%clk 0:03:01.6]}
5... g6 {[%clk 0:02:58.6]} 6. Be3 {[%clk 0:02:59.8]} 6... Nc6 {[%clk 0:02:59]}
7. f3 {[%clk 0:02:58.4]} 7... h5 {[%clk 0:02:58.8]} 8. Qd2 {[%clk 0:02:58.6]}
8... Nxd4 {[%clk 0:02:55.1]} 9. Bxd4 {[%clk 0:02:56.9]} 9... Bh6 {[%clk
0:02:43.3]} 10. Be3 {[%clk 0:02:56.9]} 10... Bxe3 {[%clk 0:02:38.2]} 11. Qxe3
{[%clk 0:02:57.7]} 11... Be6 {[%clk 0:02:39.1]} 12. Bb5+ {[%clk 0:02:56]} 12...
Kf8 {[%clk 0:02:35.5]} 13. O-O-O {[%clk 0:02:55.4]} 13... Qa5 {[%clk 0:02:33.8]}
14. a3 {[%clk 0:02:47]} 14... Kg7 {[%clk 0:02:25.5]} 15. Rhe1 {[%clk 0:02:43.3]}
15... Rhc8 {[%clk 0:02:22.1]} 16. Bf1 {[%clk 0:02:37.7]} 16... Rab8 {[%clk
0:02:16.8]} 17. e5 {[%clk 0:02:30.7]} 17... dxe5 {[%clk 0:02:10.9]} 18. Qxe5
{[%clk 0:02:31.6]} 18... Qb6 {[%clk 0:02:01.5]} 19. Qd4 {[%clk 0:02:24.1]} 19...
Qxd4 {[%clk 0:01:57.3]} 20. Rxd4 {[%clk 0:02:24.2]} 20... a6 {[%clk 0:01:58.2]}
21. a4 {[%clk 0:02:21.3]} 21... Rc7 {[%clk 0:01:54.7]} 22. Red1 {[%clk
0:02:18.6]} 22... Rbc8 {[%clk 0:01:47]} 23. Rd8 {[%clk 0:02:18.3]} 23... Nd7
{[%clk 0:01:44.5]} 24. Rxc8 {[%clk 0:02:18]} 24... Rxc8 {[%clk 0:01:45.4]} 25.
Ne4 {[%clk 0:02:16.8]} 25... Bf5 {[%clk 0:01:38.4]} 26. Rd4 {[%clk 0:01:55.8]}
26... Ne5 {[%clk 0:01:06.9]} 27. Kd2 {[%clk 0:01:31.4]} 27... h4 {[%clk
0:00:58.5]} 28. h3 {[%clk 0:01:25]} 28... Bxh3 {[%clk 0:00:49.2]} 29. Nc3 {[%clk
0:01:18.4]} 29... Nxf3+ {[%clk 0:00:39.3]} 30. gxf3 {[%clk 0:01:19.3]} 30...
Bxf1 {[%clk 0:00:40.1]} 31. Rxh4 {[%clk 0:01:19.4]} 31... Bc4 {[%clk 0:00:38.9]}
32. b3 {[%clk 0:01:16.5]} 32... Be6 {[%clk 0:00:38.7]} 33. Ne4 {[%clk
0:01:16.9]} 33... Bd5 {[%clk 0:00:34.3]} 34. c4 {[%clk 0:01:13.3]} 34... Bc6
{[%clk 0:00:32.8]} 35. Ng5 {[%clk 0:01:04.8]} 35... f6 {[%clk 0:00:32.5]} 36.
Ne6+ {[%clk 0:01:04.8]} 36... Kf7 {[%clk 0:00:31.6]} 37. Nd4 {[%clk 0:01:04.8]}
37... Rd8 {[%clk 0:00:27.6]} 38. Ke3 {[%clk 0:01:04.3]} 38... f5 {[%clk
0:00:10.6]} 39. f4 {[%clk 0:00:54.6]} 39... Kf6 {[%clk 0:00:10.1]} 40. b4 {[%clk
0:00:54.4]} 40... Bxa4 {[%clk 0:00:09.7]} 41. Rh1 {[%clk 0:00:48.5]} 41... Be8
{[%clk 0:00:09.2]} 42. Rg1 {[%clk 0:00:42.4]} 42... Bf7 {[%clk 0:00:09.1]} 43.
c5 {[%clk 0:00:38.3]} 43... e5 {[%clk 0:00:09.4]} 44. fxe5+ {[%clk 0:00:37.3]}
44... Kxe5 {[%clk 0:00:10]} 45. Nf3+ {[%clk 0:00:35.3]} 45... Kf6 {[%clk
0:00:10.3]} 46. Rc1 {[%clk 0:00:31.5]} 46... Bd5 {[%clk 0:00:09.2]} 47. Nd4
{[%clk 0:00:31.4]} 47... Re8+ {[%clk 0:00:09.3]} 48. Kd3 {[%clk 0:00:29.6]}
48... g5 {[%clk 0:00:09.7]} 49. c6 {[%clk 0:00:26.2]} 49... bxc6 {[%clk
0:00:09.5]} 50. Ra1 {[%clk 0:00:26.4]} 50... Ra8 {[%clk 0:00:05]} 51. Rb1 {[%clk
0:00:26.8]} 51... Be4+ {[%clk 0:00:04.7]} 0-1

[Event "Early-Titled-Tuesday-Blitz-February-27-2024"]
[Site "Chess.com"]
[Date "2024.02.27"]
[Round "11"]
[White "C_K_G"]
[Black "thebeast2900"]
[Result "0-1"]
[WhiteElo "2163"]
[BlackElo "2306"]
[TimeControl "180+1"]
[EndTime "10:06:36 PST"]
[Termination "thebeast2900 won on time"]

1. e4 {[%clk 0:03:00.9]} 1... c5 {[%clk 0:02:57.9]} 2. Nf3 {[%clk 0:03:01.1]}
2... e6 {[%clk 0:02:55.7]} 3. d4 {[%clk 0:03:01.6]} 3... cxd4 {[%clk 0:02:55.8]}
4. Nxd4 {[%clk 0:03:02.3]} 4... Nc6 {[%clk 0:02:56]} 5. Be3 {[%clk 0:02:59.9]}
5... Qc7 {[%clk 0:02:54.2]} 6. Be2 {[%clk 0:02:58.2]} 6... a6 {[%clk 0:02:53.9]}
7. O-O {[%clk 0:02:57.7]} 7... Nf6 {[%clk 0:02:54.5]} 8. Nd2 {[%clk 0:02:55.4]}
8... d5 {[%clk 0:02:48.8]} 9. c4 {[%clk 0:02:44.1]} 9... Nxd4 {[%clk 0:02:30.7]}
10. Bxd4 {[%clk 0:02:41.3]} 10... e5 {[%clk 0:02:31.4]} 11. Bc3 {[%clk 0:02:29]}
11... d4 {[%clk 0:02:26.8]} 12. Bxd4 {[%clk 0:02:22.4]} 12... exd4 {[%clk
0:02:25.9]} 13. f4 {[%clk 0:02:21.3]} 13... Bc5 {[%clk 0:02:23.2]} 14. Bd3
{[%clk 0:02:19]} 14... O-O {[%clk 0:02:17.9]} 15. h3 {[%clk 0:02:17.2]} 15... g6
{[%clk 0:02:09.5]} 16. e5 {[%clk 0:02:10.5]} 16... Nh5 {[%clk 0:02:06.1]} 17.
Qf3 {[%clk 0:02:03.2]} 17... Ng7 {[%clk 0:01:54]} 18. Ne4 {[%clk 0:01:58.4]}
18... Be7 {[%clk 0:01:49.7]} 19. g4 {[%clk 0:01:57.3]} 19... f5 {[%clk
0:01:29.6]} 20. Nf2 {[%clk 0:01:34.3]} 20... Bd7 {[%clk 0:01:27.8]} 21. Qg3
{[%clk 0:01:30.5]} 21... Kh8 {[%clk 0:01:19.4]} 22. a3 {[%clk 0:01:20.4]} 22...
Be6 {[%clk 0:01:10.9]} 23. b4 {[%clk 0:01:16.5]} 23... Qc8 {[%clk 0:00:54.1]}
24. c5 {[%clk 0:01:12.8]} 24... b6 {[%clk 0:00:50.7]} 25. cxb6 {[%clk
0:01:09.7]} 25... Qb7 {[%clk 0:00:49.2]} 26. Rac1 {[%clk 0:00:54.9]} 26... Rac8
{[%clk 0:00:49.5]} 27. h4 {[%clk 0:00:31.3]} 27... Rc3 {[%clk 0:00:44]} 28. Rxc3
{[%clk 0:00:26.7]} 28... dxc3 {[%clk 0:00:44.9]} 29. Rc1 {[%clk 0:00:26]} 29...
Qxb6 {[%clk 0:00:38.8]} 30. gxf5 {[%clk 0:00:17.7]} 30... Nxf5 {[%clk
0:00:37.9]} 31. Bxf5 {[%clk 0:00:17.3]} 31... Bxf5 {[%clk 0:00:36.7]} 32. Rxc3
{[%clk 0:00:17.8]} 32... Qd4 {[%clk 0:00:33.7]} 33. Rc7 {[%clk 0:00:15.7]} 33...
Bd8 {[%clk 0:00:29.9]} 34. Rb7 {[%clk 0:00:13]} 34... Bb6 {[%clk 0:00:29.4]} 35.
a4 {[%clk 0:00:11]} 35... Rc8 {[%clk 0:00:28.1]} 36. a5 {[%clk 0:00:08.5]} 36...
Ba7 {[%clk 0:00:27.7]} 37. h5 {[%clk 0:00:05.6]} 37... Rc1+ {[%clk 0:00:25.1]}
38. Kh2 {[%clk 0:00:05.7]} 38... Qxf2+ {[%clk 0:00:23.6]} 39. Qxf2 {[%clk
0:00:06]} 39... Bxf2 {[%clk 0:00:23.7]} 40. h6 {[%clk 0:00:06.9]} 40... Rc8
{[%clk 0:00:22.5]} 41. b5 {[%clk 0:00:05.3]} 41... axb5 {[%clk 0:00:21.6]} 42.
a6 {[%clk 0:00:06.2]} 42... Be3 {[%clk 0:00:19.3]} 43. Kg3 {[%clk 0:00:05.4]}
43... Be4 {[%clk 0:00:15.1]} 44. Rd7 {[%clk 0:00:03.8]} 44... Rf8 {[%clk
0:00:15.1]} 45. a7 {[%clk 0:00:01]} 45... Bxf4+ {[%clk 0:00:15.1]} 46. Kg4
{[%clk 0:00:01.6]} 46... Bxe5 {[%clk 0:00:14.9]} 47. Re7 {[%clk 0:00:01.1]}
47... Bf5+ {[%clk 0:00:11.2]} 0-1

[Event "Early-Titled-Tuesday-Blitz-February-27-2024"]
[Site "Chess.com"]
[Date "2024.02.27"]
[Round "11"]
[White "LimeInTheCoconut"]
[Black "Aslanov_Umid"]
[Result "1/2-1/2"]
[WhiteElo "2516"]
[BlackElo "2660"]
[TimeControl "180+1"]
[EndTime "10:06:37 PST"]
[Termination "Game drawn by repetition"]

1. b3 {[%clk 0:03:00.9]} 1... Nf6 {[%clk 0:02:58.9]} 2. Bb2 {[%clk 0:02:59.4]}
2... g6 {[%clk 0:02:59.5]} 3. Bxf6 {[%clk 0:02:56.5]} 3... exf6 {[%clk
0:03:00.4]} 4. c4 {[%clk 0:02:57]} 4... Bg7 {[%clk 0:03:00.6]} 5. Nc3 {[%clk
0:02:57]} 5... f5 {[%clk 0:03:00.5]} 6. Rc1 {[%clk 0:02:57.7]} 6... b6 {[%clk
0:03:00.8]} 7. Nf3 {[%clk 0:02:54.6]} 7... Bb7 {[%clk 0:03:00.7]} 8. e3 {[%clk
0:02:54.6]} 8... O-O {[%clk 0:03:01]} 9. Be2 {[%clk 0:02:55.2]} 9... d6 {[%clk
0:03:01.2]} 10. O-O {[%clk 0:02:54.7]} 10... Nd7 {[%clk 0:03:01.9]} 11. Ne1
{[%clk 0:02:52.9]} 11... Re8 {[%clk 0:03:00.7]} 12. Bf3 {[%clk 0:02:42.9]} 12...
Bxf3 {[%clk 0:02:54.8]} 13. Nxf3 {[%clk 0:02:43.8]} 13... Ne5 {[%clk 0:02:53]}
14. d4 {[%clk 0:02:40.8]} 14... Nd7 {[%clk 0:02:38.1]} 15. b4 {[%clk 0:02:33.5]}
15... c6 {[%clk 0:02:28.5]} 16. b5 {[%clk 0:02:28.7]} 16... c5 {[%clk
0:02:26.7]} 17. Nd5 {[%clk 0:02:19.6]} 17... Nf6 {[%clk 0:02:22.7]} 18. Nxf6+
{[%clk 0:02:18.6]} 18... Qxf6 {[%clk 0:02:21.1]} 19. g3 {[%clk 0:02:08.9]} 19...
Rad8 {[%clk 0:02:05.4]} 20. Rc3 {[%clk 0:01:59.6]} 20... d5 {[%clk 0:02:01.6]}
21. Qb3 {[%clk 0:01:42.8]} 21... cxd4 {[%clk 0:01:46.7]} 22. Nxd4 {[%clk
0:01:40.8]} 22... f4 {[%clk 0:01:34.9]} 23. gxf4 {[%clk 0:01:33]} 23... dxc4
{[%clk 0:01:26.9]} 24. Rxc4 {[%clk 0:01:31.5]} 24... Qh4 {[%clk 0:01:25.3]} 25.
Qd1 {[%clk 0:01:14.1]} 25... g5 {[%clk 0:00:44.9]} 26. Kh1 {[%clk 0:00:52.7]}
26... gxf4 {[%clk 0:00:30.8]} 27. Rg1 {[%clk 0:00:51.3]} 27... fxe3 {[%clk
0:00:25.3]} 28. Rxg7+ {[%clk 0:00:21.5]} 28... Kxg7 {[%clk 0:00:25.5]} 29. Nf5+
{[%clk 0:00:15.8]} 29... Kf8 {[%clk 0:00:25.8]} 30. Qa1 {[%clk 0:00:02.3]} 30...
Rd1+ {[%clk 0:00:06.2]} 31. Qxd1 {[%clk 0:00:01.9]} 31... Qf6 {[%clk 0:00:06.9]}
32. fxe3 {[%clk 0:00:01.5]} 32... Qxf5 {[%clk 0:00:06.9]} 33. Rf4 {[%clk
0:00:02.1]} 33... Qe5 {[%clk 0:00:05.9]} 34. Qf3 {[%clk 0:00:02.4]} 34... Qe7
{[%clk 0:00:05.7]} 35. Kg2 {[%clk 0:00:01.7]} 35... Rd8 {[%clk 0:00:06]} 36. a4
{[%clk 0:00:02]} 36... Rd2+ {[%clk 0:00:06.3]} 37. Kg3 {[%clk 0:00:02.6]} 37...
Qg5+ {[%clk 0:00:06.9]} 38. Rg4 {[%clk 0:00:02.6]} 38... Qe5+ {[%clk 0:00:07.3]}
39. Rf4 {[%clk 0:00:02.6]} 39... Qg5+ {[%clk 0:00:07.5]} 40. Rg4 {[%clk
0:00:02.8]} 40... Qh6 {[%clk 0:00:07.8]} 41. Rh4 {[%clk 0:00:03.1]} 41... Qd6+
{[%clk 0:00:07.9]} 42. Rf4 {[%clk 0:00:03.2]} 42... Qh6 {[%clk 0:00:07.8]} 43.
Rh4 {[%clk 0:00:03.5]} 43... Qg6+ {[%clk 0:00:07.9]} 44. Rg4 {[%clk 0:00:04.1]}
44... Qc2 {[%clk 0:00:06.5]} 45. Rf4 {[%clk 0:00:03.9]} 45... Qg6+ {[%clk
0:00:02.7]} 46. Rg4 {[%clk 0:00:04.3]} 46... Qd6+ {[%clk 0:00:03.2]} 47. Rf4
{[%clk 0:00:04.9]} 47... Qd7 {[%clk 0:00:03]} 48. Rg4 {[%clk 0:00:04.9]} 48...
Qe6 {[%clk 0:00:03.3]} 49. Rf4 {[%clk 0:00:05.4]} 49... Qg6+ {[%clk 0:00:03.6]}
50. Rg4 {[%clk 0:00:05.6]} 1/2-1/2

[Event "Early-Titled-Tuesday-Blitz-February-27-2024"]
[Site "Chess.com"]
[Date "2024.02.27"]
[Round "11"]
[White "Lion-Al-Messi"]
[Black "krzyzan94"]
[Result "1-0"]
[WhiteElo "2578"]
[BlackElo "2787"]
[TimeControl "180+1"]
[EndTime "10:06:38 PST"]
[Termination "Lion-Al-Messi won by checkmate"]

1. e4 {[%clk 0:03:00.9]} 1... c5 {[%clk 0:02:54.4]} 2. Nf3 {[%clk 0:03:00.8]}
2... d6 {[%clk 0:02:53.4]} 3. d4 {[%clk 0:03:00.9]} 3... cxd4 {[%clk 0:02:54.3]}
4. Nxd4 {[%clk 0:03:01.2]} 4... Nf6 {[%clk 0:02:54.7]} 5. Nc3 {[%clk 0:03:01.5]}
5... a6 {[%clk 0:02:54.5]} 6. h3 {[%clk 0:03:01.7]} 6... e5 {[%clk 0:02:54.2]}
7. Nde2 {[%clk 0:03:01.7]} 7... Be7 {[%clk 0:02:48.5]} 8. g4 {[%clk 0:03:01.3]}
8... h6 {[%clk 0:02:46]} 9. Bg2 {[%clk 0:02:58.8]} 9... b5 {[%clk 0:02:44.5]}
10. Ng3 {[%clk 0:02:57.9]} 10... b4 {[%clk 0:02:38.6]} 11. Nd5 {[%clk
0:02:57.3]} 11... Nxd5 {[%clk 0:02:38.2]} 12. Qxd5 {[%clk 0:02:58.2]} 12... Ra7
{[%clk 0:02:34.3]} 13. Be3 {[%clk 0:02:58.1]} 13... Be6 {[%clk 0:02:31.5]} 14.
Qd2 {[%clk 0:02:56.1]} 14... Rb7 {[%clk 0:02:28.3]} 15. Nf5 {[%clk 0:02:55.8]}
15... O-O {[%clk 0:01:46.3]} 16. Rd1 {[%clk 0:02:54.1]} 16... Bxf5 {[%clk
0:01:40.2]} 17. exf5 {[%clk 0:02:53.7]} 17... Rb5 {[%clk 0:01:39.3]} 18. O-O
{[%clk 0:02:51.7]} 18... Nd7 {[%clk 0:01:30.8]} 19. Bc6 {[%clk 0:02:40.3]} 19...
Rb8 {[%clk 0:01:30.4]} 20. Bd5 {[%clk 0:02:25.6]} 20... Bg5 {[%clk 0:01:24.6]}
21. Bb3 {[%clk 0:02:18.1]} 21... Bxe3 {[%clk 0:01:21.4]} 22. Qxe3 {[%clk
0:02:13.2]} 22... Nc5 {[%clk 0:01:18.3]} 23. f4 {[%clk 0:02:09]} 23... Re8
{[%clk 0:00:53.8]} 24. g5 {[%clk 0:02:06.8]} 24... exf4 {[%clk 0:00:46.3]} 25.
Qxf4 {[%clk 0:01:58.6]} 25... Qxg5+ {[%clk 0:00:42.8]} 26. Qxg5 {[%clk
0:01:58.1]} 26... hxg5 {[%clk 0:00:43.7]} 27. Rxd6 {[%clk 0:01:56.2]} 27... Nxb3
{[%clk 0:00:34]} 28. axb3 {[%clk 0:01:53.4]} 28... Re3 {[%clk 0:00:34.9]} 29. f6
{[%clk 0:01:48.5]} 29... Rxh3 {[%clk 0:00:24.6]} 30. Rxa6 {[%clk 0:01:48.3]}
30... Rc8 {[%clk 0:00:23.4]} 31. Rf2 {[%clk 0:01:47.8]} 31... Rg3+ {[%clk
0:00:23.3]} 32. Kh2 {[%clk 0:01:47.4]} 32... Rg4 {[%clk 0:00:19.5]} 33. Rd6
{[%clk 0:01:45.8]} 33... gxf6 {[%clk 0:00:18.2]} 34. Rdxf6 {[%clk 0:01:45.1]}
34... Rc7 {[%clk 0:00:18.8]} 35. R6f5 {[%clk 0:01:41.2]} 35... Kg7 {[%clk
0:00:18.2]} 36. Kh3 {[%clk 0:01:41.5]} 36... Rh4+ {[%clk 0:00:17.4]} 37. Kg3
{[%clk 0:01:41.9]} 37... Kg6 {[%clk 0:00:16.8]} 38. Rf6+ {[%clk 0:01:41.7]}
38... Kg7 {[%clk 0:00:16.3]} 39. R6f5 {[%clk 0:01:41.7]} 39... Kg6 {[%clk
0:00:09.5]} 40. Rf6+ {[%clk 0:01:41.3]} 40... Kh5 {[%clk 0:00:09]} 41. Rxf7
{[%clk 0:01:35.4]} 41... Rg4+ {[%clk 0:00:05.2]} 42. Kh2 {[%clk 0:01:35.2]}
42... Rxf7 {[%clk 0:00:04.8]} 43. Rxf7 {[%clk 0:01:34.8]} 43... Re4 {[%clk
0:00:05]} 44. Kg3 {[%clk 0:01:28.5]} 44... Re2 {[%clk 0:00:03.3]} 45. Rc7 {[%clk
0:01:28.6]} 45... Re3+ {[%clk 0:00:03.4]} 46. Kf2 {[%clk 0:01:28.1]} 46... Rh3
{[%clk 0:00:04.1]} 47. Rh7+ {[%clk 0:01:23]} 47... Kg4 {[%clk 0:00:03.8]} 48.
Rxh3 {[%clk 0:01:23.9]} 48... Kxh3 {[%clk 0:00:04.2]} 49. Kg1 {[%clk 0:01:23.7]}
49... Kg3 {[%clk 0:00:03.3]} 50. c4 {[%clk 0:00:53.3]} 50... Kf4 {[%clk
0:00:03]} 51. Kf2 {[%clk 0:00:41.9]} 51... Kg4 {[%clk 0:00:03.3]} 52. Kg2 {[%clk
0:00:38.8]} 52... Kf4 {[%clk 0:00:03.3]} 53. Kf2 {[%clk 0:00:22.6]} 53... Kg4
{[%clk 0:00:03.7]} 54. Ke3 {[%clk 0:00:19.6]} 54... Kh3 {[%clk 0:00:02.1]} 55.
c5 {[%clk 0:00:19.5]} 55... g4 {[%clk 0:00:02.8]} 56. c6 {[%clk 0:00:20]} 56...
g3 {[%clk 0:00:03.5]} 57. c7 {[%clk 0:00:20.6]} 57... g2 {[%clk 0:00:03.7]} 58.
c8=Q+ {[%clk 0:00:20.8]} 58... Kh2 {[%clk 0:00:04.4]} 59. Qh8+ {[%clk
0:00:20.3]} 59... Kg1 {[%clk 0:00:04.3]} 60. Qh4 {[%clk 0:00:18.8]} 60... Kf1
{[%clk 0:00:03.7]} 61. Qf2# {[%clk 0:00:19.7]} 1-0